bitfinex-derivatives/quotes_SOLF0:USTF0_20250127
["timestamp","ask_amount","ask_price","bid_price","bid_amount"]
[1737940762000,4.2456,235.69,235.61,4.247]
[1737940762196,26.93593949,235.8,235.55,26.93593949]
[1737940762496,26.93593949,235.72,235.51,3.2549]
[1737940762701,26.93593949,235.68,235.51,3.2549]
[1737940762903,1.5717,235.67,235.51,3.2549]
[1737940763104,4.2475,235.59,235.51,3.2549]
[1737940763305,1.5717,235.67,235.51,3.2549]
[1737940764102,4.2476,235.58,235.57,0.03071033]
[1737940765004,0.03172279,235.61,235.57,0.03071033]
[1737940765207,26.93593949,235.76,235.57,0.03071033]
[1737940765506,4.2467,235.63,235.54,31.18403949]
[1737940765703,1.5932,235.75,235.54,26.93593949]
[1737940765897,4.2476,235.58,235.54,26.93593949]
[1737940766204,26.93593949,235.72,235.54,26.93593949]
[1737940766403,1.5932,235.75,235.54,26.96329822]
[1737940766699,1.5932,235.75,235.54,26.93593949]
[1737940767299,1.5932,235.75,235.58,26.93593949]
[1737940767705,4.2464,235.65,235.58,26.93593949]
[1737940767907,4.2464,235.65,235.64,0.03178911]
[1737940768108,4.2464,235.65,235.58,26.93593949]
[1737940768305,4.2465,235.64,235.58,31.18343949]
[1737940768608,0.02779112,235.67,235.62,0.02841291]
[1737940769002,4.2471,235.61,235.54,26.93593949]
[1737940769300,0.03083034,235.67,235.62,0.02973693]
[1737940769505,1.5932,235.75,235.54,26.93593949]
[1737940769706,0.03211863,235.67,235.62,0.02719423]
[1737940770205,4.2467,235.63,235.62,0.02719423]
[1737940770408,4.2181669,235.63,235.62,0.02719423]
[1737940771002,4.2465,235.65,235.62,0.02719423]
[1737940771203,0.03211863,235.67,235.62,0.02719423]
[1737940771403,0.03211863,235.67,235.63,4.2466]
[1737940771609,1.5932,235.75,235.63,1.9932]
[1737940772005,4.2464,235.65,235.63,1.9932]
[1737940772204,26.93593949,235.72,235.62,0.02719423]
[1737940772506,4.2467,235.63,235.62,0.02719423]
[1737940772703,26.93593949,235.68,235.51,3.2549]
[1737940773106,4.2476,235.58,235.51,3.2549]
[1737940773508,26.93593949,235.68,235.51,3.2549]
[1737940773903,0.02873926,235.62,235.57,0.03110647]
[1737940774410,4.2475,235.58,235.57,0.03110647]
[1737940776109,0.02873926,235.62,235.57,0.03110647]
[1737940776809,0.02873926,235.62,235.45,5.0304]
[1737940777204,3.2482,235.63,235.45,5.0304]
[1737940778012,0.0299229,235.56,235.52,0.03218258]
[1737940778211,4.2482,235.53,235.52,0.03218258]
[1737940781818,26.96586239,235.56,235.4,172.74719678]
[1737940782117,26.93593949,235.56,235.4,172.74719678]
[1737940782818,0.02869549,235.5,235.46,0.02743689]
[1737940783615,4.2492,235.47,235.46,0.02743689]
[1737940785219,0.02869549,235.5,235.46,0.02743689]
[1737940786018,26.93593949,235.6,235.46,0.02743689]
[1737940786717,4.249,235.48,235.46,0.02743689]
[1737940786918,4.249,235.48,235.41,203.7146683]
[1737940787215,0.02951598,235.49,235.45,0.0290967]
[1737940787421,26.93593949,235.52,235.41,203.7146683]
[1737940787619,0.03176048,235.49,235.45,0.03089524]
[1737940788614,4.2492,235.47,235.45,0.03089524]
[1737940788820,0.03176048,235.49,235.45,0.03089524]
[1737940790119,4.2494,235.46,235.45,0.03089524]
[1737940790921,4.2492,235.47,235.45,0.03089524]
[1737940791421,4.2493,235.46,235.45,0.03089524]
[1737940792716,4.2492,235.47,235.45,0.03089524]
[1737940792915,0.03176048,235.49,235.45,0.03089524]
[1737940793318,4.249,235.48,235.45,0.03089524]
[1737940793522,0.03176048,235.49,235.45,0.03089524]
[1737940797225,4.2492,235.47,235.45,0.03089524]
[1737940797422,0.03176048,235.49,235.45,0.03089524]
[1737940798325,4.28056048,235.49,235.45,0.03089524]
[1737940798525,0.03176048,235.49,235.45,0.03089524]
[1737940799728,4.2493,235.46,235.45,0.03089524]
[1737940799929,0.03176048,235.49,235.45,0.03089524]
[1737940800820,4.2493,235.46,235.45,0.03089524]
[1737940801824,0.03176048,235.49,235.45,0.03089524]
[1737940803433,1.7107,235.59,235.45,0.03089524]
[1737940803627,26.93593949,235.64,235.45,0.03089524]
[1737940803932,4.2472,235.58,235.5,4.2486]
[1737940804133,26.93593949,235.6,235.45,3.3739]
[1737940804432,26.93593949,235.56,235.36,26.93593949]
[1737940804632,0.03151214,235.55,235.5,0.03152781]
[1737940805024,0.03151214,235.55,235.38,3.3739]
[1737940805025,4.2487,235.5,235.41,4.2501]
[1737940805228,16.63396777,235.52,235.5,6.592e-05]
[1737940805434,3.2202,235.51,235.33,203.7146683]
[1737940805633,4.2508,235.38,235.33,203.7146683]
[1737940806034,16.63396777,235.45,235.33,203.7146683]
[1737940806328,16.63396777,235.41,235.33,203.7146683]
[1737940806536,4.2504,235.4,235.37,0.02857494]
[1737940806734,0.03110632,235.41,235.37,0.02857494]
[1737940806937,16.66507409,235.41,235.29,223.46696672]
[1737940808137,16.66507409,235.41,235.33,0.02738424]
[1737940808337,4.2509,235.38,235.33,0.02738424]
[1737940808540,0.03110632,235.41,235.33,0.02738424]
[1737940809035,0.03110632,235.41,235.33,27.07507842]
[1737940809234,1.6273,235.51,235.37,27.04769418]
[1737940809534,4.2475,235.57,235.46,4.2493]
[1737940809741,27.04769418,235.65,235.45,27.04769418]
[1737940810033,3.5944,235.67,235.46,3.2171]
[1737940810434,0.02823257,235.59,235.54,0.02765595]
[1737940811232,0.02823257,235.59,235.37,27.04769418]
[1737940811434,27.04769418,235.57,235.37,27.04769418]
[1737940811732,4.2492,235.47,235.37,4.2509]
[1737940811935,27.04769418,235.57,235.34,1.6551]
[1737940812338,27.04769418,235.53,235.34,1.6551]
[1737940812542,0.03107581,235.48,235.43,0.02803939]
[1737940814536,27.04769418,235.66,235.43,0.02803939]
[1737940814838,28.42739418,235.66,235.45,27.04769418]
[1737940815032,94.42731603,235.76,235.54,27.04769418]
[1737940815232,1.3445,235.75,235.58,27.04769418]
[1737940815539,67.37962185,235.76,235.66,4.2457]
[1737940815738,0.02987687,235.69,235.64,0.03098491]
[1737940815934,60.90622185,235.76,235.66,27.04769418]
[1737940816136,60.90622185,235.76,235.7,27.04769418]
[1737940816345,38.64884693,235.76,235.74,27.04769418]
[1737940816541,38.64884693,235.76,235.74,31.29179418]
[1737940816844,99.40190038,235.77,235.74,27.04769418]
[1737940817342,0.03233616,235.77,235.74,27.04769418]
[1737940817843,3.1486,235.96,235.74,27.04769418]
[1737940818046,3.1486,235.96,235.8,27.04769418]
[1737940818343,4.2409,235.93,235.84,27.04769418]
[1737940818546,0.4698,235.96,235.84,27.04769418]
[1737940818843,27.51749418,235.96,235.75,27.04769418]
[1737940819050,27.07787375,235.92,235.71,1.4174]
[1737940819448,27.04769418,235.92,235.71,1.4174]
[1737940819650,27.51749418,235.96,235.71,1.4174]
[1737940819852,27.51749418,235.96,235.74,27.04769418]
[1737940820044,4.2419,235.88,235.75,4.2441]
[1737940820245,0.4698,235.96,235.82,27.04769418]
[1737940820449,2.748,236.03,235.86,27.04769418]
[1737940820450,0.03120846,235.87,235.86,27.04769418]
[1737940820645,1.3598,236.03,235.86,27.04769418]
[1737940820851,1.2965,236.07,235.9,27.04769418]
[1737940821545,27.04769418,236.12,235.9,27.04769418]
[1737940821745,1.2965,236.13,235.95,27.04769418]
[1737940822151,0.027508,236.03,235.99,0.0274916]
[1737940822549,1.2965,236.13,235.99,0.0274916]
[1737940822748,0.02948211,236.03,235.99,0.0274916]
[1737940822958,0.02948211,236.03,236.0,27.04769418]
[1737940823247,4.2372,236.14,236.0,27.04769418]
[1737940823447,27.04769418,236.24,236.04,27.04769418]
[1737940823645,27.04769418,236.24,235.99,0.0316142]
[1737940823646,27.04769418,236.24,236.0,27.04769418]
[1737940823856,0.02944995,236.09,236.0,27.04769418]
[1737940824052,27.04769418,236.2,236.1,0.0292011]
[1737940824553,27.04769418,236.2,236.0,27.04769418]
[1737940824754,27.04769418,236.16,235.96,27.04769418]
[1737940824951,27.04769418,236.16,235.92,27.04769418]
[1737940825147,27.04769418,236.08,235.87,27.04769418]
[1737940825350,27.04769418,236.03,235.82,27.04769418]
[1737940825549,27.04769418,235.99,235.78,27.04769418]
[1737940825952,27.04769418,235.95,235.74,27.04769418]
[1737940826154,0.03216244,235.91,235.56,27.04769418]
[1737940826352,27.07985662,235.91,235.56,27.04769418]
[1737940826552,27.04769418,235.91,235.56,27.04769418]
[1737940826856,3.55144156,235.9,235.56,27.04769418]
[1737940827153,2.7892,235.9,235.56,27.04769418]
[1737940827452,0.02937392,235.81,235.77,0.02989509]
[1737940827958,2.7892,235.9,235.77,0.02989509]
[1737940828156,0.03240266,235.81,235.77,0.02989509]
[1737940828454,4.2429,235.82,235.77,0.02989509]
[1737940828650,27.04769418,235.87,235.77,0.02989509]
[1737940828853,0.02690283,235.81,235.77,0.02989509]
[1737940829052,4.2435,235.79,235.77,0.02989509]
[1737940829559,27.04769418,235.79,235.6,27.04769418]
[1737940829857,27.04769418,235.83,235.6,27.04769418]
[1737940830054,4.2443,235.76,235.6,27.04769418]
[1737940830254,27.04769418,235.83,235.6,27.04769418]
[1737940830450,27.04769418,235.79,235.55,106.44769418]
[1737940830653,4.2448,235.73,235.69,0.03061265]
[1737940830956,0.02974662,235.74,235.69,0.03061265]
[1737940831652,4.2453,235.7,235.69,0.03061265]
[1737940831957,0.02974662,235.74,235.55,27.04769418]
[1737940832255,27.04769418,235.75,235.55,27.04769418]
[1737940832256,4.2459,235.67,235.55,27.04769418]
[1737940832652,27.04769418,235.75,235.55,27.04769418]
[1737940833061,0.03250129,235.67,235.63,0.02872901]
[1737940833257,4.246,235.66,235.63,0.02872901]
[1737940833560,0.03250129,235.67,235.63,0.02872901]
[1737940834059,4.2462,235.65,235.63,0.02872901]
[1737940834453,0.03250129,235.67,235.44,199.79489096]
[1737940834658,27.08019547,235.67,235.49,4.249]
[1737940834960,27.04769418,235.67,235.44,199.79489096]
[1737940835161,4.249,235.49,235.4,31.29829418]
[1737940835361,27.04769418,235.59,235.39,172.74719678]
[1737940835858,4.2491,235.49,235.47,0.03128911]
[1737940836361,27.04769418,235.55,235.47,0.03128911]
[1737940837164,27.04769418,235.5,235.29,172.74719678]
[1737940837558,4.2498,235.44,235.29,172.74719678]
[1737940837753,27.04769418,235.5,235.29,172.74719678]
[1737940838163,27.04769418,235.55,235.33,27.04769418]
[1737940838364,0.02911781,235.42,235.37,0.02973027]
[1737940838764,4.251,235.39,235.37,0.02973027]
[1737940839063,27.07681199,235.42,235.21,199.79489096]
[1737940839263,0.02911781,235.42,235.25,27.04769418]
[1737940839462,27.04769418,235.5,235.29,27.04769418]
[1737940840064,4.2498,235.46,235.37,0.02926267]
[1737940840458,1.3817,235.55,235.33,27.04769418]
[1737940840762,27.04769418,235.51,235.29,27.04769418]
[1737940841459,0.02779856,235.42,235.38,0.02782709]
[1737940842564,4.27829856,235.42,235.38,0.02782709]
[1737940842762,28.42939418,235.55,235.38,0.02782709]
[1737940843163,27.04769418,235.51,235.29,27.04769418]
[1737940843965,0.03148916,235.42,235.38,0.03082893]
[1737940844465,2.33,235.5,235.33,27.04769418]
[1737940844665,0.03052872,235.42,235.38,0.02793329]
[1737940844962,4.2508,235.4,235.38,0.02793329]
[1737940845769,3.38858774,235.42,235.38,0.02793329]
[1737940846068,8.61778372,235.42,235.38,0.02793329]
[1737940846266,8.61778372,235.42,235.4,4.2505]
[1737940846464,8.58058372,235.42,235.4,4.2505]
[1737940846664,8.58058372,235.42,235.38,0.02793329]
[1737940846882,4.2507,235.4,235.38,0.02793329]
[1737940847873,3.39,235.41,235.38,0.02793329]
[1737940848974,0.65426042,235.42,235.38,0.02793329]
[1737940849671,0.65426042,235.42,235.41,4.2505]
[1737940849878,1.339,235.41,235.23,159.42039678]
[1737940850068,27.04769418,235.31,235.23,159.42039678]
[1737940850272,27.04769418,235.24,235.23,159.42039678]
[1737940850474,27.04769418,235.31,235.23,159.42039678]
[1737940850869,4.729,235.41,235.23,159.42039678]
[1737940850870,4.2533,235.26,235.23,159.42039678]
[1737940851474,27.04769418,235.27,235.23,159.42039678]
[1737940852070,4.2536,235.24,235.23,159.42039678]
[1737940852376,27.04769418,235.27,235.23,0.03232773]
[1737940852571,4.2529,235.28,235.23,0.03232773]
[1737940852771,0.02943938,235.29,235.23,0.03232773]
[1737940858772,0.02943938,235.29,235.23,27.08002191]
[1737940858976,4.729,235.41,235.31,4.2523]
[1737940859175,4.729,235.41,235.27,27.04769418]
[1737940859373,2.33,235.4,235.27,27.04769418]
[1737940859573,2.33,235.4,235.24,2.689]
[1737940859783,2.33,235.4,235.24,1.3341]
[1737940860076,27.04769418,235.37,235.19,27.04769418]
[1737940860382,27.04769418,235.33,235.02,1.3549]
[1737940860582,2.8047,235.32,235.03,1.3719]
[1737940860784,4.254,235.22,235.03,1.3719]
[1737940860984,2.8047,235.32,235.03,1.3719]
[1737940861181,4.2542,235.21,235.1,4.2561]
[1737940861380,27.04769418,235.27,235.04,27.04769418]
[1737940861579,1.3351,235.26,235.04,27.04769418]
[1737940861775,0.02968919,235.18,235.13,0.02773045]
[1737940862176,4.28418919,235.18,235.13,0.02773045]
[1737940862483,0.02968919,235.18,235.13,0.02773045]
[1737940866487,11.29968919,235.18,235.13,0.02773045]
[1737940866685,11.29968919,235.18,235.13,4.28303045]
[1737940867082,8.919e-05,235.18,235.16,27.04769418]
[1737940867279,8.919e-05,235.18,235.16,31.30249418]
[1737940868384,1.3148,235.36,235.2,27.04769418]
[1737940868985,4.2525,235.29,235.26,0.03009162]
[1737940869184,0.02729638,235.3,235.26,0.03009162]
[1737940869387,11.3,235.29,235.28,27.04769418]
[1737940870690,3.39,235.41,235.28,27.04769418]
[1737940871182,6.5807,235.4,235.28,27.04769418]
[1737940871385,2.33,235.4,235.28,27.04769418]
[1737940871782,6.5807,235.4,235.28,27.04769418]
[1737940871986,0.03064261,235.36,235.32,0.03065946]
[1737940872584,9.5007,235.4,235.32,54.12604782]
[1737940872786,1.3404,235.54,235.39,27.04769418]
[1737940873184,4.2488,235.51,235.43,4.25]
[1737940873488,27.04769418,235.64,235.46,27.04769418]
[1737940873697,27.04769418,235.68,235.46,27.04769418]
[1737940873896,0.03053655,235.49,235.45,0.02711248]
[1737940874089,31.34769418,235.68,235.46,27.04769418]
[1737940874386,16.54,235.68,235.5,31.29639418]
[1737940874593,16.54,235.68,235.54,27.04769418]
[1737940875490,0.0324365,235.63,235.59,0.03199061]
[1737940876594,4.2469,235.61,235.59,0.03199061]
[1737940877092,0.0324365,235.63,235.59,0.03199061]
[1737940877597,16.54,235.68,235.62,27.04769418]
[1737940878190,16.54,235.68,235.66,31.29359418]
[1737940878891,2.76768771,235.68,235.66,31.29359418]
[1737940879095,2.7252,235.85,235.68,4.2456]
[1737940879296,2.7252,235.85,235.66,27.04769418]
[1737940879799,2.7252,235.85,235.72,4.2448]
[1737940880103,1.3144,235.9,235.74,27.04769418]
[1737940880396,0.03015377,235.81,235.76,0.02964284]
[1737940881797,5.377e-05,235.81,235.77,27.04769418]
[1737940882097,10.61,235.9,235.8,27.04769418]
[1737940882899,10.61,235.9,235.7,27.04769418]
[1737940883103,4.2433,235.81,235.66,27.04769418]
[1737940883298,1.3474,235.89,235.7,27.04769418]
[1737940883503,1.3474,235.89,235.78,0.02996442]
[1737940883693,4.242,235.88,235.79,4.2435]
[1737940884301,1.3474,235.89,235.78,0.02996442]
[1737940884502,10.61,235.9,235.78,0.02996442]
[1737940884806,10.61,235.9,235.82,27.04769418]
[1737940885500,10.61,235.9,235.85,4.2425]
[1737940885700,10.61,235.9,235.84,0.02806624]
[1737940887506,10.61,235.9,235.85,4.2424]
[1737940887803,10.61,235.9,235.84,0.02806624]
[1737940888503,10.61,235.9,235.86,27.04769418]
[1737940889104,10.61,235.9,235.88,4.2418]
[1737940889603,10.61,235.9,235.84,0.02806624]
[1737940890196,4.134,235.9,235.88,4.2419]
[1737940890396,0.0001,235.9,235.88,4.2419]
[1737940891702,4.2393,236.03,235.89,27.04769418]
[1737940892004,2.6969,236.1,235.97,4.2403]
[1737940892207,2.6969,236.1,235.94,0.02696549]
[1737940892505,2.6969,236.1,235.88,27.04769418]
[1737940892703,4.2398,236.01,236.0,0.02922528]
[1737940892905,1.4015,236.1,236.0,0.02922528]
[1737940893106,1.4015,236.1,236.0,27.07691946]
[1737940893607,1.4015,236.1,236.06,4.2389]
[1737940893806,1.4015,236.1,236.0,27.07691946]
[1737940894108,1.4015,236.1,236.03,0.02844469]
[1737940895507,4.2384,236.09,236.04,4.2392]
[1737940896106,4.2384,236.09,236.03,0.02844469]
[1737940896609,1.3292,236.14,236.03,0.02844469]
[1737940898004,4.2392,236.04,236.03,0.02844469]
[1737940898209,27.04769418,236.12,235.92,27.04769418]
[1737940898707,4.2396,236.03,235.95,4.2408]
[1737940899100,4.2396,236.03,235.92,27.04769418]
[1737940899410,0.03162827,236.01,235.97,0.03052782]
[1737940903105,0.03162827,236.01,235.83,1.3389]
[1737940903304,4.2398,236.01,235.94,4.241]
[1737940903505,27.04769418,236.08,235.87,27.04769418]
[1737940903711,4.2396,236.02,235.87,27.04769418]
[1737940904010,27.04769418,236.12,235.91,27.04769418]
[1737940904315,4.2385,236.09,235.95,27.04769418]
[1737940904611,0.03099008,236.04,235.95,27.04769418]
[1737940904808,0.03099008,236.04,236.0,0.03118743]
[1737940905211,27.04769418,236.08,235.87,27.04769418]
[1737940905407,0.02816007,236.04,235.87,27.04769418]
[1737940905608,0.02816007,236.04,235.95,0.03241301]
[1737940905808,0.03038522,235.96,235.95,0.03241301]
[1737940906012,1.3292,236.14,235.95,27.04769418]
[1737940906414,4.2389,236.06,235.99,4.2401]
[1737940906614,27.04769418,236.12,235.91,27.04769418]
[1737940907014,27.04769418,236.12,235.99,4.2401]
[1737940907216,0.02718592,236.04,235.99,0.03255923]
[1737940907518,0.02718592,236.04,235.99,27.08025341]
[1737940907721,8.592e-05,236.04,235.99,27.08025341]
[1737940907921,8.592e-05,236.04,236.03,4.2394]
[1737940909121,8.592e-05,236.04,236.01,4.2396]
[1737940909426,8.592e-05,236.04,235.99,0.03255923]
[1737940910019,4.23948592,236.04,235.99,0.03255923]
[1737940910230,8.592e-05,236.04,235.99,0.03255923]
[1737940911134,4.2395,236.03,235.99,0.03255923]
[1737940911328,8.592e-05,236.04,235.99,0.03255923]
[1737940911723,4.2403,235.99,235.91,4.2415]
[1737940911927,8.592e-05,236.04,235.78,0.0577]
[1737940911928,1.2975,236.03,235.78,0.0577]
[1737940913025,0.03029288,235.95,235.91,0.02909768]
[1737940913624,0.03029288,235.95,235.93,4.241]
[1737940913829,0.03029288,235.95,235.91,0.02909768]
[1737940915832,0.03029288,235.95,235.82,4.243]
[1737940916033,0.03029288,235.95,235.78,56.05027397]
[1737940916232,0.03029288,235.95,235.78,29.00257979]
[1737940916531,27.04769418,235.92,235.78,29.00257979]
[1737940917033,0.03236377,235.87,235.83,0.02737422]
[1737940917227,27.04769418,235.84,235.78,24.68777979]
[1737940917424,27.04769418,235.84,235.78,4.64957979]
[1737940917628,27.04769418,235.84,235.78,0.33377979]
[1737940917825,27.04769418,235.84,235.68,173.55544608]
[1737940918232,4.2437,235.8,235.68,173.55544608]
[1737940918434,0.02969144,235.78,235.74,0.02973133]
[1737940918636,0.02969144,235.78,235.68,173.55544608]
[1737940919130,27.04769418,235.76,235.68,173.55544608]
[1737940919336,27.04769418,235.76,235.56,27.04769418]
[1737940919538,4.2456,235.69,235.56,27.04769418]
[1737940919934,0.03199069,235.65,235.64,0.02802459]
[1737940920339,27.04769418,235.84,235.64,27.04769418]
[1737940920639,27.04769418,235.8,235.59,27.04769418]
[1737940920833,27.04769418,235.76,235.55,28.42649418]
[1737940921040,27.04769418,235.72,235.55,28.42649418]
[1737940921236,27.04769418,235.72,235.53,1.3128]
[1737940921435,0.02819374,235.66,235.61,0.02741916]
[1737940921838,0.02819374,235.66,235.48,1.2982]
[1737940922038,27.04769418,235.64,235.47,172.84199317]
[1737940922238,27.04769418,235.64,235.46,1.3996]
[1737940922736,27.04769418,235.68,235.47,27.04769418]
[1737940922935,27.04769418,235.72,235.51,27.04769418]
[1737940923134,0.02937828,235.57,235.53,0.02863137]
[1737940923344,27.04769418,235.72,235.51,27.04769418]
[1737940923541,27.04769418,235.72,235.57,4.2477]
[1737940923746,27.04769418,235.72,235.51,27.04769418]
[1737940923939,27.04769418,235.68,235.48,1.2982]
[1737940924146,27.04769418,235.72,235.51,27.04769418]
[1737940924443,1.4391,235.74,235.55,27.04769418]
[1737940924638,1.4391,235.74,235.59,27.07920509]
[1737940924942,1.3931,235.8,235.63,27.04769418]
[1737940925343,27.04769418,235.84,235.63,27.04769418]
[1737940925542,4.2446,235.75,235.65,4.2462]
[1737940925734,27.04769418,235.84,235.6,4.1832]
[1737940926143,0.02830326,235.74,235.7,0.02773791]
[1737940926543,27.04769418,235.8,235.7,0.02773791]
[1737940926845,0.02712111,235.74,235.7,0.02773791]
[1737940927239,1.3309,235.86,235.66,27.04769418]
[1737940927543,1.3309,235.86,235.6,4.1832]
[1737940927544,0.02929022,235.74,235.7,0.0276131]
[1737940927747,27.04769418,235.72,235.52,27.04769418]
[1737940927936,1.4268,235.71,235.49,1.3834]
[1737940929043,0.02872908,235.62,235.58,0.02870313]
[1737940929541,4.2474,235.6,235.58,0.02870313]
[1737940930146,4.2482,235.55,235.48,1.3501]
[1737940930342,0.03016782,235.62,235.43,27.04769418]
[1737940930547,27.04769418,235.64,235.43,27.04769418]
[1737940931245,0.03102618,235.56,235.51,0.03227294]
[1737940932339,4.2485,235.53,235.39,27.04769418]
[1737940932640,27.04769418,235.56,235.37,1.3927]
[1737940933044,27.04769418,235.56,235.38,4.2511]
[1737940933045,4.2496,235.47,235.38,4.2511]
[1737940933236,27.04769418,235.56,235.37,1.3927]
[1737940933436,27.04769418,235.51,235.31,27.04769418]
[1737940933641,27.04769418,235.51,235.44,0.03225235]
[1737940933642,0.02778493,235.49,235.44,0.03225235]
[1737940937747,4.2498,235.46,235.44,0.03225235]
[1737940937950,0.02778493,235.49,235.44,0.03225235]
[1737940938151,4.27698493,235.49,235.44,0.03225235]
[1737940938350,0.02778493,235.49,235.44,0.03225235]
[1737940940145,0.02778493,235.49,235.44,27.07994653]
[1737940940344,1.4082,235.58,235.44,27.07994653]
[1737940941049,1.4181,235.63,235.44,27.07994653]
[1737940941353,1.3188,235.67,235.52,27.04769418]
[1737940941951,1.3188,235.67,235.53,2.6721]
[1737940942251,4.2463,235.65,235.57,4.2477]
[1737940942451,1.4181,235.75,235.53,2.6721]
[1737940942652,4.2477,235.58,235.53,2.6721]
[1737940942846,1.3188,235.74,235.44,27.04769418]
[1737940943050,27.04769418,235.64,235.41,2.7624]
[1737940943250,2.7567,235.63,235.45,4.2498]
[1737940943846,2.7567,235.63,235.44,4.2499]
[1737940944252,2.7567,235.63,235.41,2.7624]
[1737940944253,4.2484,235.54,235.51,0.03049081]
[1737940944755,4.2485,235.53,235.51,0.03049081]
[1737940945055,0.03221162,235.56,235.36,27.04769418]
[1737940945249,27.0799058,235.56,235.36,27.04769418]
[1737940945449,27.04769418,235.56,235.36,27.04769418]
[1737940945653,4.2489,235.51,235.4,4.2507]
[1737940945854,27.04769418,235.56,235.36,27.04769418]
[1737940946253,0.02962899,235.46,235.42,0.02762134]
[1737940946751,0.028658,235.46,235.42,0.02762134]
[1737940949354,4.2503,235.44,235.42,0.02762134]
[1737940949551,0.028658,235.46,235.42,0.02762134]
[1737940949756,4.2501,235.45,235.42,0.02762134]
[1737940949956,0.028658,235.46,235.42,0.02762134]
[1737940950953,4.2503,235.43,235.42,0.02762134]
[1737940951153,0.028658,235.46,235.29,1.4003]
[1737940951351,4.251,235.4,235.32,4.2522]
[1737940951551,27.04769418,235.48,235.29,1.4003]
[1737940951955,4.2506,235.41,235.33,4.252]
[1737940952352,27.04769418,235.48,235.29,1.4003]
[1737940952657,0.02822892,235.39,235.35,0.02860588]
[1737940952959,4.2515,235.36,235.35,0.02860588]
[1737940953351,0.03163282,235.39,235.24,27.04769418]
[1737940953555,0.03163282,235.39,235.33,0.0305158]
[1737940953860,0.02742658,235.38,235.33,0.0305158]
[1737940954058,4.2519,235.34,235.33,0.0305158]
[1737940955261,0.02742658,235.38,235.33,0.0305158]
[1737940957158,1.3822,235.5,235.33,0.0305158]
[1737940957561,1.3822,235.5,235.32,27.04769418]
[1737940957763,27.04769418,235.48,235.28,27.04769418]
[1737940958462,0.02873332,235.4,235.36,0.03123168]
[1737940960067,4.27973332,235.4,235.36,0.03123168]
[1737940960267,0.02873332,235.4,235.36,0.03123168]
[1737940961567,4.2511,235.39,235.36,0.03123168]
[1737940961767,0.02873332,235.4,235.36,0.03123168]
[1737940962663,4.2511,235.39,235.36,0.03123168]
[1737940962968,0.02873332,235.4,235.36,0.03123168]
[1737940963659,0.02873332,235.4,235.37,4.2512]
[1737940964261,0.02873332,235.4,235.36,0.03123168]
[1737940965061,0.02873332,235.4,235.36,4.28273168]
[1737940965260,0.02873332,235.4,235.36,0.03123168]
[1737940965465,1.3833,235.54,235.36,0.03123168]
[1737940965671,1.3833,235.54,235.38,16.64672143]
[1737940966471,1.3833,235.54,235.35,2.614]
[1737940966770,0.02813817,235.48,235.44,0.02790907]
[1737940967972,4.27753817,235.48,235.44,0.02790907]
[1737940968167,0.02813817,235.48,235.44,0.02790907]
[1737940968673,4.2499,235.45,235.44,0.02790907]
[1737940969371,4.2499,235.45,235.21,11.92416013]
[1737940969372,16.64672143,235.47,235.26,16.64672143]
[1737940969572,16.64672143,235.47,235.27,2.7366]
[1737940969978,16.64672143,235.47,235.3,16.64672143]
[1737940970168,16.64672143,235.51,235.3,16.64672143]
[1737940970368,2.7215,235.54,235.34,16.64672143]
[1737940970571,2.7215,235.54,235.38,0.02770942]
[1737940970572,0.03012485,235.43,235.38,0.02770942]
[1737940970972,0.03191162,235.43,235.39,4.2508]
[1737940971171,0.03191162,235.43,235.38,0.0299794]
[1737940971569,0.03191162,235.43,235.4,4.2507]
[1737940971973,0.03191162,235.43,235.38,0.0299794]
[1737940972174,0.03191162,235.43,235.4,4.2508]
[1737940973169,1.3833,235.54,235.38,16.67670083]
[1737940973375,18.04902143,235.59,235.38,16.64672143]
[1737940973676,4.2493,235.49,235.42,4.2503]
[1737940973879,16.64672143,235.55,235.35,1.4203]
[1737940974272,0.03218402,235.47,235.43,0.02842032]
[1737940976170,0.03218402,235.47,235.46,4.2497]
[1737940976377,18.04902143,235.59,235.43,0.02842032]
[1737940976578,18.04902143,235.59,235.42,1.3654]
[1737940976772,4.2481,235.55,235.48,4.2494]
[1737940977179,1.3226,235.62,235.42,1.3654]
[1737940977571,0.03178439,235.54,235.5,0.0276128]
[1737940978370,0.03178439,235.54,235.5,4.2765128]
[1737940978573,0.03178439,235.54,235.5,0.0276128]
[1737940979481,0.03178439,235.54,235.52,4.2485]
[1737940979778,16.64672143,235.74,235.51,16.64672143]
[1737940979987,38.698159,235.85,235.72,16.64672143]
[1737940980181,113.4676475,235.89,235.8,16.64672143]
[1737940981084,28.98690857,235.87,235.85,16.64672143]